Cogmind - Beta 14 @@@ ROGUE MODE // 2024.12.28 @ 00:37:46 Player: nado Result: Destroyed by Y-45 Defender with Heavy Assault Rifle Performance ------------- Evolutions (0) 0 Regions Visited (2) 400 Robots Destroyed (31) 155 Value Destroyed (713) 713 Prototype IDs (2) 40 Alien Tech Used (0) 0 Bonus (0) 0 TOTAL SCORE: 1308 Bonus ------- None Cogmind --------- Core Integrity 0/250 Matter 293/300 Energy 250/250 System Corruption 1% Temperature Cool (18) Movement Rolling (175) Ox5 Location -10/Mines Parts ------- > --- POWER (1) -------- Ion Engine > --- PROPULSION (2) --- Compact Wheel > --- UTILITY (2) ------ Huge Storage Unit > --- WEAPON (2) ------- Light Assault Rifle > --- INVENTORY (25) --- Ion Engine Ion Engine Ion Engine Light Ion Engine Light Ion Engine Aluminum Leg Backup Propulsion I Heat Sink Structural Scanner Sensor Array Signal Interpreter Power Shielding Light Armor Plating Small Laser Beam Cannon Beam Cannon Assault Rifle Light Assault Rifle Makeshift Axe Peak State ------------ > --- POWER ------------ Ion Engine > --- PROPULSION ------- Wheel Compact Wheel > --- UTILITY ---------- Improved Heat Sink Huge Storage Unit > --- WEAPON ----------- Light Assault Rifle Light Assault Rifle > --- INVENTORY -------- Ion Engine Ion Engine Ion Engine Light Ion Engine Light Ion Engine Aluminum Leg Backup Propulsion I Heat Sink Structural Scanner Sensor Array Signal Interpreter Power Shielding Light Armor Plating Small Laser Beam Cannon Beam Cannon Assault Rifle Light Assault Rifle Makeshift Axe [Rating: 11] Favorites ----------- Power Ion Engine Engine Ion Engine Propulsion Light Treads Treads Light Treads Leg Aluminum Leg Wheel Wheel Utility Huge Storage Unit Device Improved Heat Sink Storage Huge Storage Unit Protection Light Armor Plating Weapon Light Assault Rifle Energy Gun Medium Laser Ballistic Gun Light Assault Rifle Build | -11 -10 -10 ------- Run | Yrd Mat Min Slots Evolved . | . . . Power . | . . . Propulsion . | . . . Utility . | . . . Weapon . | . . . Parts Attached 20 | 6 14 . Power 3 | 1 2 . Engine 3 | 1 2 . Core . | . . . Reactor . | . . . Propulsion 8 | 2 6 . Treads 2 | 2 . . Leg 2 | . 2 . Wheel 4 | . 4 . Hover . | . . . Flight . | . . . Utility 4 | 1 3 . Device 1 | . 1 . Storage 2 | 1 1 . Processor . | . . . Hackware . | . . . Protection 1 | . 1 . Artifact . | . . . Weapon 5 | 2 3 . Energy Gun 2 | 1 1 . Energy Cannon . | . . . Ballistic Gun 3 | 1 2 . Ballistic Cannon . | . . . Launcher . | . . . Special Weapon . | . . . Impact Weapon . | . . . Slashing Weapon . | . . . Piercing Weapon . | . . . Special Melee Weapon . | . . . Unidentified Prototypes . | . . . Parts Lost 11 | . 8 3 Power 1 | . 1 . Propulsion 5 | . 4 1 Utility 1 | . . 1 Weapon 4 | . 3 1 Highest Loss Streak 4 | . 4 3 To Critical Strikes . | . . . Average Slot Usage (%) 88 | . 86 100 Engine 13 | . 13 14 Treads 14 | . 16 . Wheel 9 | . 6 28 Device 6 | . 5 14 Storage 14 | . 14 14 Energy Gun 8 | . 9 . Ballistic Gun 18 | . 17 28 Peak Build Rating 11 | 6 10 11 Average Rating 7 | 5 7 10 On Entrance 5 | . 6 10 Naked Turns . | . . . Heaviest Build 91 | 14 91 88 Greatest Support 40 | 40 40 26 Greatest Overweight (x) 8 | . 8 3 Average Overweight (x) 3 | . 3 3 Largest Inventory Capacity 25 | 8 25 25 Average Capacity 22 | 7 23 25 Most Carried 19 | 4 18 19 Average Carried 11 | 3 11 18 Final Capacity 25 | 8 25 25 Final Carried 19 | 4 18 19 Class Distribution -------------------- 97% | Mutant Dominant Class ---------------- Mutant | -10/Materials Mutant | -10/Mines Resources | -11 -10 -10 ----------- Run | Yrd Mat Min Matter Collected 523 | 200 323 . Remotely . | . . . Salvage Created 1068 | . 1032 36 Parts 64 | . 63 1 Haulers Intercepted 2 | . 2 . Recyclers Shooed 2 | . 2 . Parts Field Recycled . | . . . Retrieved Matter . | . . . Parts Self-Destructed . | . . . Prevented . | . . . Kills | -11 -10 -10 ------- Run | Yrd Mat Min Combat Hostiles Destroyed 23 | . 22 1 Guns 23 | . 22 1 Classes Destroyed 7 | . 7 . Worker 2 | . 2 . Builder 1 | . 1 . Hauler 2 | . 2 . Recycler 1 | . 1 . Watcher 2 | . 2 . Swarmer 6 | . 6 . Grunt 17 | . 16 1 Best Kill Streak 6 | . 6 1 Combat Bots Only 5 | . 5 1 Max Kills in Single Turn 2 | . 2 1 Gunslinging . | . . . Exploded . | . . . Melee . | . . . Uniques/NPCs Destroyed . | . . . Combat | -11 -10 -10 -------- Run | Yrd Mat Min Hostile Shots Fired 178 | . 150 28 Missed 47 | . 40 7 Damage Taken 1492 | . 1196 296 Core 258 | . 196 62 Absorbed by Shields . | . . . Core Remaining (%) 100 | 100 . . Volleys Fired 101 | . 89 12 Largest 2 | . 2 2 Hottest 90 | . 90 40 Shots Fired 177 | . 155 22 Gun 177 | . 155 22 Cannon . | . . . Launcher . | . . . Special . | . . . Kinetic 115 | . 93 22 Thermal 62 | . 62 . Explosive . | . . . Electromagnetic . | . . . Robot Hit Streak 9 | . 9 4 Robot Miss Streak 3 | . 3 3 Penetration Max . | . . . Secondary Targets . | . . . Shots Hit Robots 120 | . 106 14 Core Hits 60 | . 55 5 Critical Kills 1 | . 1 . Critical Parts Destroyed . | . . . Critical Strikes 5 | . 5 . Burn 4 | . 4 . Destroy 1 | . 1 . Melee Attacks . | . . . Impact . | . . . Slashing . | . . . Piercing . | . . . Sneak Attacks . | . . . Combat Hostiles . | . . . Follow-up Attacks . | . . . Damage Inflicted 1316 | . 1184 132 Guns 1265 | . 1133 132 Cannons . | . . . Explosions . | . . . Melee . | . . . Ramming 51 | . 51 . Kinetic 751 | . 619 132 Thermal 514 | . 514 . Explosive . | . . . Electromagnetic . | . . . Impact . | . . . Slashing . | . . . Piercing . | . . . Highest Corruption 1 | . 1 1 Average Corruption 1 | . 1 1 Corruption Purged . | . . . Corruption Blocked . | . . . Effects 1 | . . 1 Heat Flow Errors 1 | . . 1 Overload Shots . | . . . Overflow Damage . | . . . Projectiles . | . . . Explosions . | . . . Melee . | . . . Knockbacks 1 | . 1 . Impact 1 | . 1 . Kinetic . | . . . Secondary . | . . . Self-Inflicted Damage 2 | . 2 . Shots . | . . . Rammed 6 | . 6 . Targets Rammed 7 | . 7 . Kicked . | . . . Crushed 1 | . 1 . Highest Temperature 416 | . 416 70 Average Temperature 105 | . 108 22 Received Heat Transfer 657 | . 489 168 Effects 5 | . 5 . Interference 1 | . 1 . Damage (major) 4 | . 4 . Siege Activations . | . . . Robots Corrupted . | . . . Combat Hostiles . | . . . Parts Fried . | . . . Impact Corruptions . | . . . Robots Melted . | . . . Combat Hostiles . | . . . Parts Melted 8 | . 8 . Heat Transferred 1731 | . 1731 . Parts Sabotaged . | . . . Parts Stolen . | . . . Parts Stripped . | . . . Power Chain Reactions . | . . . Alert | -11 -10 -10 ------- Run | Yrd Mat Min Peak Influence 215 | . 215 35 Initial . | . . . Average 40 | . 48 4 Maximum Alert Level 1 | . 1 . Low Security (%) 96 | 100 96 100 Level 1 3 | . 3 . Level 2 . | . . . Level 3 . | . . . Level 4 . | . . . Level 5 . | . . . High Security . | . . . Max Security . | . . . Squads Dispatched 6 | . 6 . Investigation 4 | . 4 . Extermination . | . . . Reinforcement 2 | . 2 . Assault . | . . . Garrison . | . . . Intercept . | . . . Searches Triggered . | . . . Construction Impeded . | . . . Haulers Reinforced . | . . . Active Scanning Responses . | . . . Cargo Convoy Interrupts . | . . . Stealth | -11 -10 -10 --------- Run | Yrd Mat Min Distress Signals 3 | . 3 . Communications Jammed . | . . . Distress Signals . | . . . Times Spotted 39 | . 35 4 Peak Tracking Total 6 | . 6 4 Tactical Retreats 2 | . 2 . Traps | -11 -10 -10 ------- Run | Yrd Mat Min Traps Triggered 2 | . 2 . Indirectly . | . . . Trap Hack Attempts . | . . . Triggered . | . . . Disarmed . | . . . Reprogrammed . | . . . Reused . | . . . Traps Extracted . | . . . Installed . | . . . Triggered . | . . . Machines | -11 -10 -10 ---------- Run | Yrd Mat Min Machines Disabled . | . . . Max in Single Turn . | . . . Machines Repaired . | . . . Machines Dismantled . | . . . Machines Sabotaged . | . . . Overloaded Fab Kills . | . . . Hacking | -11 -10 -10 --------- Run | Yrd Mat Min Machines Accessed 8 | . 8 . Terminals 6 | . 6 . Fabricators . | . . . Repair Stations 1 | . 1 . Recycling Units 1 | . 1 . Scanalyzers . | . . . Garrison Access . | . . . Total Hacks 23 | . 23 . Successful 11 | . 11 . Failed 12 | . 12 . Catastrophic 5 | . 5 . Database Lockouts . | . . . Manual 15 | . 15 . Terminals 18 | . 18 . Fabricators . | . . . Repair Stations 4 | . 4 . Recycling Units 1 | . 1 . Scanalyzers . | . . . Garrison Access . | . . . Terminal Hacks 9 | . 9 . Robot Analysis 4 | . 4 . Prototype ID Bank 1 | . 1 . Unreport Threat 3 | . 3 . Hauler Manifests 1 | . 1 . Fabricator Hacks . | . . . Repair Station Hacks 1 | . 1 . Refit 1 | . 1 . Recycling Unit Hacks . | . . . Scanalyzer . | . . . Garrison Access Hacks . | . . . Unauthorized Hacks 1 | . 1 . Terminals . | . . . Fabricators . | . . . Repair Stations . | . . . Recycling Units 1 | . 1 . Monitor 1 | . 1 . Scanalyzers . | . . . Garrison Access . | . . . Data Cores Recovered . | . . . Used . | . . . Hacking Detections 7 | . 7 . Full Trace Events 5 | . 5 . Feedback Events . | . . . Feedback Blocked . | . . . Robot Schematics Acquired . | . . . Robots Built . | . . . Authchips . | . . . Time . | . . . Total Robot Build Rating . | . . . Part Schematics Acquired . | . . . Parts Built . | . . . Authchips . | . . . Time . | . . . Total Part Build Rating . | . . . Parts Repaired . | . . . Time . | . . . Parts Recycled . | . . . Recycled Matter . | . . . Retrieved Matter . | . . . Retrieved Components . | . . . Parts Scanalyzed . | . . . Part Schematics Acquired . | . . . Parts Damaged . | . . . Bothacking | -11 -10 -10 ------------ Run | Yrd Mat Min Used RIF Installer . | . . . Robots Hacked . | . . . Non-combat . | . . . Combat . | . . . Robot Hacks Applied . | . . . Relay Couplers Released . | . . . Fabnet Peak Effective % . | . . . Robots Rewired . | . . . Allies Hacked . | . . . Hacks Repelled . | . . . Allies | -11 -10 -10 -------- Run | Yrd Mat Min Total Allies . | . . . Largest Group . | . . . Highest-Rated Group . | . . . Highest-Rated Ally . | . . . Total Orders . | . . . Ally Attacks . | . . . Total Damage . | . . . Kills . | . . . Allies Corrupted . | . . . Allies Melted . | . . . Intel | -11 -10 -10 ------- Run | Yrd Mat Min Robot Analysis Total 4 | . 4 . Derelict Logs Recovered 1 | . . 1 Drone Launches . | . . . Drone Recoveries . | . . . Exploration | -11 -10 -10 ------------- Run | Yrd Mat Min Turns Passed 2398 | 143 2017 238 Spaces Moved 966 | 85 730 151 Core 4 | 4 . . Treads 447 | 81 366 . Legs 11 | . 11 . Wheels 504 | . 353 151 Hover . | . . . Flight . | . . . Fastest Speed 50 | 50 135 135 Average Speed 209 | 154 230 135 Slowest Speed 680 | 160 680 135 Overloaded Moves . | . . . Propulsion Burnouts . | . . . Robots Hopped . | . . . Cave-ins Triggered . | . . . Exploration Rate (%) 48 | 5 98 41 Regions Visited 2 Branch Regions 1 Pre-discovered Areas . | . . . Known Exits Taken . | . . . Unknown Exits Taken 2 | 1 1 . Scrap Searched 1 | . . 1 Spaces Dug . | . . . Terrain Destroyed . | . . . Melee . | . . . Projectile . | . . . AOE . | . . . Terrain Rammed . | . . . Walls Destroyed . | . . . Machines Disabled . | . . . Actions | -11 -10 -10 --------- Run | Yrd Mat Min Total 1168 | 94 906 168 Wait 49 | . 45 4 Move 964 | 84 729 151 Hop . | . . . Pick Up 21 | 4 16 1 Fast Attach 12 | 6 6 . Attach 7 | . 7 . Detach 5 | . 5 . Swap 1 | . 1 . Drop 1 | . 1 . Fire 101 | . 89 12 Melee . | . . . Ram 1 | . 1 . Kick . | . . . Crush 6 | . 6 . Escape Stasis . | . . . Rewire . | . . . Trap . | . . . Miscellaneous . | . . . Route ------- -11/Scrapyard -10/Materials (discovered 5 exits: [*Mat x3] / [*Min x2]) -10/Mines (discovered 1 exit: [*Mat]) History --------- Turn | Location | Event 16 | -11/Scrapyard | Discovered new exit (range 16) 144 | -11/Scrapyard | Entered Materials 330 | -10/Materials | Build established: Mutant 422 | -10/Materials | Discovered new exit (range 4) 1142 | -10/Materials | Discovered new exit (range 7) 1381 | -10/Materials | Core integrity fell below 50% 1429 | -10/Materials | Lost 4 parts (1p1n2w) 1809 | -10/Materials | Discovered new exit (range 3) 1955 | -10/Materials | Discovered new exit (range 6) 2055 | -10/Materials | Discovered new exit (range 13) 2161 | -10/Materials | Entered Mines 2229 | -10/Mines | Discovered new exit (range 9) 2239 | -10/Mines | Met a Derelict bent on vengeance 2305 | -10/Mines | A weapon hastily lodged in a ceiling crevice suddenly fell to the ground 2368 | -10/Mines | Core integrity fell below 20% 2399 | -10/Mines | Destroyed by Y-45 Defender with Heavy Assault Rifle Last Messages --------------- GOAL=ESCAPE 02166_ Searching scrap... 02166_ Found Lrg. Matter Pod. 02166_ Found 57 Matter. 02166_ Found 32 Matter. 02229_ EXIT=FOUND 02305_ A Mak. Axe has been hastily shoved under some rubble with a note attached: "Chop chop!" 02307_ Acquired Mak. Axe. 02317_ System corrupted: Heat flow error (+104). 02360_ Acquired derelict log, extracted data. Data stored: Mines entrances (x2). 02374_ T-07 Excavator destroyed. 02381_ G-34 Mercenary destroyed. 02383_ Critical hit (Burn: +37). 02393_ R-06 Scavenger collects Sml. Laser. 02395_ Imp. Heat Sink destroyed. 02396_ Lgt. Assault Rifle destroyed. 02396_ Wheel destroyed. 02397_ K-01 Serf collects debris. Map ----- +----------------------------------------------------+ | ?????????????????????????????????????????????????? | | ?????????????????????????????????????????????????? | | ?????????????????????????????????????????????????? | | ?????????????????????????????????????????????????? | | ?????????????????????????????????????????????????? | | ?????????????????????????????????????????????????? | | ???????????????????????????????|!????????????????? | | ??????????????????????????????? ????????????????? | | ?????????????????????????????? ????????????????? | | ????????????????????????????###//###?????????????? | | ????????????????????????????# #?????????????? | | ???????????????????????????? #####?????????? | | ????????????????????????????? ??????????? | | ????????????????????????????? ???????????? | | ?????????????????????????????? #???????????? | | ??????????????????????????????? ????????????? | | ??????????????????????????????? ?????????????? | | ???????????????????????????????? #?????????????? | | ?????????????????????####???????# #?????????????? | | ????????????????????## ##????## #?????????????? | | ????????????????????# ###### #?????????????? | | ????????????????????# %! ##????????????? | | ?????????????????????# r| #####????####? | | ?????????????????????## Yk##### ##??## ## | | ?????????????????????## g#???# #### # | | ?????????????????????# @#???## | | ????????????????????# ##????## ### | | ????????????????? #???????# #?## | | ?????????????? ##???????? #??## | | ??????????? #????????? ###???# ##### | | ???????????? #?????????#???????####???# # | | ???????????? ###?????????????????????????# ## | | ???????????? ##?????????????????????????????# #? | | ?????????????????????????????????????????????# ## | | ?????????????????????????????????????????????# | | ?????????????????????????????????????????????##### | | ?????????????????????????????????????????????????? | | ?????????????????????????????????????????????????# | | ?????????????????????????????????????????????##### | | ????????????????????????????????????####????## | | ????????????????????????????????????? #????# | | ?????????????????????????????????????# #????# | | ????????????????????????????????????## ##???# | | ???????????????????????????????????## ##??## | | ??????????????????????????????????## ##??### | | ?????????????????????????????????## ####?### | | ?????????????????????????????????# #???? | | ????????????????????####?????????# ### #???? | | ???????????????????? ????????### ##?# #???? | | ???????????????????? ??????????# ##??# #???? | +----------------------------------------------------+ Best States ------------- Heat Dissipation 39 Energy Generation 10 Energy Capacity 250 Matter Stores 300 Matter Capacity 300 Sight Range 16 Terrain Scan Density 10 Armor Coverage 150 Evasion (%) 40 Recoil Reduction 2 Item Schematics ----------------- None Robot Schematics ------------------ None Fabricated ------------ Nothing Alien Tech Used ----------------- None Achievements -------------- None Challenges ------------ None Game ------ Seed TransmissionSwordCoupler Manual? 0 Play Time 00:24:37 Cumulative 53.8 hours Start 2024.12.27 @ 23:34:19 End 2024.12.28 @ 00:37:46 Sessions 1 Manual Loads 0 Difficulty Rogue Special Mode None Game No. 37 Rogue 37 Adventurer 0 Explorer 0 Win Type - Total 0 Types 0/0/0/0/0/0/0/0/0 Lore% 21 Gallery% 29 Achievement% 28 Wizard Run 0 Options --------- Layout 0 ASCII 0 Keyboard 1 Movement Arrows Keybinds 0 Fullscreen 2 Font 18/Terminus Map View 76x50 Zoom Use 0% Tactical HUD 1 Map Filters NONE Filters NONE Steam 1 RUN: b4423b7e-db43-49bc-a573-54b85606827a